[Event "Late-Titled-Tuesday-Blitz-October-10-2023"]
[Site "Chess.com"]
[Date "2023.10.10"]
[Round "4"]
[White "ritanovikova"]
[Black "GAO"]
[Result "0-1"]
[WhiteElo "2102"]
[BlackElo "2351"]
[TimeControl "180+1"]
[EndTime "14:35:57 PDT"]
[Termination "GAO won by resignation"]

1. e4 {[%clk 0:02:57.6]} 1... c5 {[%clk 0:02:59.6]} 2. Nc3 {[%clk 0:02:56.9]}
2... Nc6 {[%clk 0:03:00]} 3. d3 {[%clk 0:02:56.5]} 3... g6 {[%clk 0:02:59.9]} 4.
Be3 {[%clk 0:02:55.6]} 4... Bg7 {[%clk 0:03:00.8]} 5. Bxc5 {[%clk 0:02:54.9]}
5... Qa5 {[%clk 0:03:00.3]} 6. Be3 {[%clk 0:02:52.3]} 6... Bxc3+ {[%clk
0:02:58]} 7. bxc3 {[%clk 0:02:52.1]} 7... Qxc3+ {[%clk 0:02:58.9]} 8. Bd2 {[%clk
0:02:51.4]} 8... Qg7 {[%clk 0:02:59.5]} 9. Nf3 {[%clk 0:02:48.2]} 9... Nf6
{[%clk 0:02:51.7]} 10. Be2 {[%clk 0:02:45.3]} 10... O-O {[%clk 0:02:42.3]} 11.
Bc3 {[%clk 0:02:41]} 11... d6 {[%clk 0:02:38.5]} 12. O-O {[%clk 0:02:40.1]}
12... Bg4 {[%clk 0:02:25.7]} 13. Nd4 {[%clk 0:02:36.9]} 13... Bxe2 {[%clk
0:02:23.4]} 14. Qxe2 {[%clk 0:02:37.7]} 14... Rac8 {[%clk 0:02:23.2]} 15. Nxc6
{[%clk 0:02:36.5]} 15... Rxc6 {[%clk 0:02:24.1]} 16. Bd4 {[%clk 0:02:33]} 16...
Rfc8 {[%clk 0:02:20.2]} 17. c4 {[%clk 0:02:29.9]} 17... e5 {[%clk 0:02:19.9]}
18. Bxa7 {[%clk 0:02:24.3]} 18... b6 {[%clk 0:02:18.7]} 19. Qe3 {[%clk 0:02:23]}
19... Nd7 {[%clk 0:02:17.5]} 20. Rfb1 {[%clk 0:02:11.8]} 20... f5 {[%clk
0:01:37.7]} 21. Bxb6 {[%clk 0:02:11]} 21... f4 {[%clk 0:01:36.6]} 22. Qh3 {[%clk
0:02:05.4]} 22... Rxb6 {[%clk 0:01:22.2]} 23. Rxb6 {[%clk 0:01:54.2]} 23... Nxb6
{[%clk 0:01:23.1]} 24. a4 {[%clk 0:01:52.3]} 24... Qd7 {[%clk 0:01:13.3]} 25.
Qxd7 {[%clk 0:01:38.2]} 25... Nxd7 {[%clk 0:01:14.2]} 26. a5 {[%clk 0:01:37.6]}
26... Ra8 {[%clk 0:01:13.1]} 27. g3 {[%clk 0:01:31.3]} 27... g5 {[%clk
0:01:09.8]} 28. h4 {[%clk 0:01:30.9]} 28... h6 {[%clk 0:01:06.9]} 29. hxg5
{[%clk 0:01:31.3]} 29... hxg5 {[%clk 0:01:07.8]} 30. gxf4 {[%clk 0:01:30.8]}
30... gxf4 {[%clk 0:01:08.7]} 31. Kf1 {[%clk 0:01:26.1]} 31... Nc5 {[%clk
0:01:07.8]} 32. Ke2 {[%clk 0:01:25.2]} 32... Nb3 {[%clk 0:01:07.7]} 33. Rg1+
{[%clk 0:01:24.4]} 33... Kf7 {[%clk 0:01:06.3]} 34. Rh1 {[%clk 0:01:18.2]} 34...
Rxa5 {[%clk 0:01:02.2]} 35. Rh6 {[%clk 0:01:17.7]} 35... Nd4+ {[%clk 0:01:00.1]}
36. Kd2 {[%clk 0:01:16.8]} 36... Ra2+ {[%clk 0:00:59.5]} 37. Ke1 {[%clk
0:01:16.5]} 37... Ke7 {[%clk 0:00:54.9]} 38. Rh7+ {[%clk 0:01:15.5]} 38... Ke6
{[%clk 0:00:55]} 39. Rh6+ {[%clk 0:01:15.6]} 39... Kd7 {[%clk 0:00:55.6]} 40.
Rh7+ {[%clk 0:01:15.3]} 40... Kc6 {[%clk 0:00:56.2]} 41. Rh8 {[%clk 0:01:10.6]}
41... Ra1+ {[%clk 0:00:53.4]} 42. Kd2 {[%clk 0:01:09]} 42... Rf1 {[%clk
0:00:53.4]} 43. Rh2 {[%clk 0:01:04.6]} 43... Nf3+ {[%clk 0:00:41.4]} 44. Ke2
{[%clk 0:01:03.3]} 44... Nxh2 {[%clk 0:00:42.3]} 0-1

[Event "Late-Titled-Tuesday-Blitz-October-10-2023"]
[Site "Chess.com"]
[Date "2023.10.10"]
[Round "4"]
[White "Msb2"]
[Black "Ramosha"]
[Result "1-0"]
[WhiteElo "3034"]
[BlackElo "2617"]
[TimeControl "180+1"]
[EndTime "14:36:01 PDT"]
[Termination "Msb2 won by resignation"]

1. d4 {[%clk 0:03:00.9]} 1... Nf6 {[%clk 0:02:59.9]} 2. c4 {[%clk 0:03:01.5]}
2... e6 {[%clk 0:03:00.4]} 3. Nc3 {[%clk 0:03:02.2]} 3... Bb4 {[%clk 0:03:01.1]}
4. e3 {[%clk 0:03:02.7]} 4... O-O {[%clk 0:03:00.6]} 5. Bd2 {[%clk 0:03:03.3]}
5... d5 {[%clk 0:03:00.4]} 6. Nf3 {[%clk 0:03:03.4]} 6... c6 {[%clk 0:02:58.3]}
7. Rc1 {[%clk 0:03:03]} 7... b6 {[%clk 0:02:58.1]} 8. Bd3 {[%clk 0:03:02.9]}
8... dxc4 {[%clk 0:02:58]} 9. Bxc4 {[%clk 0:03:03.2]} 9... Ba6 {[%clk
0:02:58.8]} 10. Bxa6 {[%clk 0:03:02.3]} 10... Nxa6 {[%clk 0:02:59.7]} 11. O-O
{[%clk 0:03:03.1]} 11... Nc7 {[%clk 0:02:59.1]} 12. Ne5 {[%clk 0:03:03.1]} 12...
c5 {[%clk 0:02:58.3]} 13. Nc6 {[%clk 0:03:00.5]} 13... Qe8 {[%clk 0:02:55.9]}
14. Nxb4 {[%clk 0:02:57]} 14... cxb4 {[%clk 0:02:56.8]} 15. Ne2 {[%clk
0:02:57.8]} 15... Ncd5 {[%clk 0:02:57.3]} 16. f3 {[%clk 0:02:58.3]} 16... a5
{[%clk 0:02:56.6]} 17. e4 {[%clk 0:02:58.9]} 17... Ne7 {[%clk 0:02:56.5]} 18.
Be3 {[%clk 0:02:55.5]} 18... Qb5 {[%clk 0:02:54.7]} 19. Nf4 {[%clk 0:02:50.6]}
19... Ng6 {[%clk 0:02:53.7]} 20. Qd3 {[%clk 0:02:48.2]} 20... Qa4 {[%clk
0:02:53.4]} 21. b3 {[%clk 0:02:39.1]} 21... Nxf4 {[%clk 0:02:42.3]} 22. Bxf4
{[%clk 0:02:40]} 22... Qd7 {[%clk 0:02:22.6]} 23. Rc7 {[%clk 0:02:38.9]} 23...
Qd8 {[%clk 0:02:22.5]} 24. Rfc1 {[%clk 0:02:39.4]} 24... Nd7 {[%clk 0:02:21.1]}
25. Qb5 {[%clk 0:02:32.7]} 25... Nf6 {[%clk 0:02:16.9]} 26. Be5 {[%clk
0:02:22.5]} 26... Re8 {[%clk 0:02:08.8]} 27. h3 {[%clk 0:02:06.7]} 27... Nh5
{[%clk 0:01:58.8]} 28. Qd7 {[%clk 0:02:02.7]} 28... Qxd7 {[%clk 0:01:46.1]} 29.
Rxd7 {[%clk 0:02:03.6]} 29... Rad8 {[%clk 0:01:43.8]} 30. Rcc7 {[%clk
0:01:51.8]} 30... f6 {[%clk 0:01:42.3]} 31. Bd6 {[%clk 0:01:46.9]} 31... Rxd7
{[%clk 0:01:39]} 32. Rxd7 {[%clk 0:01:47.8]} 32... f5 {[%clk 0:01:32.5]} 33.
exf5 {[%clk 0:01:35.3]} 33... exf5 {[%clk 0:01:31.8]} 34. Be5 {[%clk 0:01:36]}
34... Nf6 {[%clk 0:01:29.8]} 35. Rd6 {[%clk 0:01:36.4]} 35... Rc8 {[%clk
0:01:26.4]} 36. Bxf6 {[%clk 0:01:24.4]} 36... gxf6 {[%clk 0:01:26]} 37. Rxb6
{[%clk 0:01:21.7]} 37... Rc2 {[%clk 0:01:23.2]} 38. Rxf6 {[%clk 0:01:21.6]}
38... Rxa2 {[%clk 0:01:23.3]} 39. Rxf5 {[%clk 0:01:21.5]} 39... Kg7 {[%clk
0:01:18.7]} 40. Rb5 {[%clk 0:01:21.5]} 40... Kf6 {[%clk 0:01:18.3]} 41. Kh2
{[%clk 0:01:21.9]} 41... Ke6 {[%clk 0:01:18.5]} 42. Kg3 {[%clk 0:01:22.3]} 42...
Kd6 {[%clk 0:01:16.6]} 43. d5 {[%clk 0:01:22.8]} 43... Ra3 {[%clk 0:01:07.7]}
44. Kf4 {[%clk 0:01:21.2]} 44... Rxb3 {[%clk 0:01:04.9]} 45. Rxa5 {[%clk
0:01:21.6]} 45... Rc3 {[%clk 0:01:03]} 46. Rb5 {[%clk 0:01:21.6]} 46... Rc4+
{[%clk 0:01:01.3]} 47. Ke3 {[%clk 0:01:20]} 47... Rc2 {[%clk 0:00:55.5]} 48. g4
{[%clk 0:01:18.7]} 48... Rc3+ {[%clk 0:00:55.7]} 49. Ke4 {[%clk 0:01:18.7]}
49... Rc4+ {[%clk 0:00:56]} 50. Kf5 {[%clk 0:01:15.9]} 50... Rc3 {[%clk
0:00:56.3]} 51. Kf4 {[%clk 0:01:13.2]} 51... b3 {[%clk 0:00:53.7]} 52. h4 {[%clk
0:01:10.4]} 52... Rc4+ {[%clk 0:00:53.7]} 53. Kg5 {[%clk 0:01:07.9]} 53... Ke5
{[%clk 0:00:45.9]} 54. Rxb3 {[%clk 0:01:06.8]} 54... Kxd5 {[%clk 0:00:46.2]} 55.
Re3 {[%clk 0:01:06.2]} 1-0

[Event "Late-Titled-Tuesday-Blitz-October-10-2023"]
[Site "Chess.com"]
[Date "2023.10.10"]
[Round "4"]
[White "bettercallcafu"]
[Black "KorolDimitriy75"]
[Result "1-0"]
[WhiteElo "2649"]
[BlackElo "2416"]
[TimeControl "180+1"]
[EndTime "14:36:02 PDT"]
[Termination "bettercallcafu won on time"]

1. d4 {[%clk 0:02:56.7]} 1... Nf6 {[%clk 0:02:59.7]} 2. c4 {[%clk 0:02:57.1]}
2... c5 {[%clk 0:02:59.8]} 3. d5 {[%clk 0:02:57.3]} 3... b5 {[%clk 0:03:00.1]}
4. cxb5 {[%clk 0:02:58.2]} 4... a6 {[%clk 0:03:00.4]} 5. bxa6 {[%clk 0:02:59.1]}
5... g6 {[%clk 0:03:00.6]} 6. Nc3 {[%clk 0:03:00]} 6... Bxa6 {[%clk 0:03:00.8]}
7. e4 {[%clk 0:03:00.4]} 7... Bxf1 {[%clk 0:03:01.3]} 8. Kxf1 {[%clk 0:03:01.3]}
8... d6 {[%clk 0:03:01.8]} 9. Nf3 {[%clk 0:03:02.2]} 9... Bg7 {[%clk 0:03:02.4]}
10. g3 {[%clk 0:03:03.1]} 10... O-O {[%clk 0:03:02.8]} 11. Kg2 {[%clk 0:03:04]}
11... Nbd7 {[%clk 0:03:03.1]} 12. a4 {[%clk 0:03:04.7]} 12... Qb8 {[%clk
0:03:02.7]} 13. Qc2 {[%clk 0:03:04.4]} 13... Qb4 {[%clk 0:03:02.3]} 14. Bd2
{[%clk 0:03:04.1]} 14... Nb6 {[%clk 0:03:01.8]} 15. Rhe1 {[%clk 0:03:00.5]}
15... Nc4 {[%clk 0:02:46]} 16. Na2 {[%clk 0:02:54.9]} 16... Qxa4 {[%clk
0:02:43.4]} 17. b3 {[%clk 0:02:54.9]} 17... Na3 {[%clk 0:02:38.3]} 18. Qd3
{[%clk 0:02:42.6]} 18... Qa6 {[%clk 0:02:30.7]} 19. Qxa6 {[%clk 0:02:39.9]}
19... Rxa6 {[%clk 0:02:31.6]} 20. Nc3 {[%clk 0:02:38.2]} 20... Rb8 {[%clk
0:02:00]} 21. e5 {[%clk 0:02:27]} 21... Ng4 {[%clk 0:01:47.3]} 22. exd6 {[%clk
0:02:12.7]} 22... exd6 {[%clk 0:01:48.2]} 23. h3 {[%clk 0:02:07.3]} 23... Ne5
{[%clk 0:01:45.3]} 24. Nxe5 {[%clk 0:02:00.3]} 24... Bxe5 {[%clk 0:01:46.2]} 25.
Ra2 {[%clk 0:01:52.1]} 25... Rxb3 {[%clk 0:01:37]} 26. Ne4 {[%clk 0:01:51.2]}
26... Rab6 {[%clk 0:01:04.5]} 27. Nxc5 {[%clk 0:01:48.3]} 27... Rb2 {[%clk
0:00:50.3]} 28. Rxb2 {[%clk 0:01:45.3]} 28... Rxb2 {[%clk 0:00:50.6]} 29. Bc1
{[%clk 0:01:45.2]} 29... Ra2 {[%clk 0:00:41.8]} 30. Nd3 {[%clk 0:01:39.3]} 30...
Bd4 {[%clk 0:00:17.7]} 31. Re8+ {[%clk 0:01:36.7]} 31... Kg7 {[%clk 0:00:17.1]}
32. Ra8 {[%clk 0:01:33.9]} 32... Bc5 {[%clk 0:00:05.4]} 33. Nxc5 {[%clk
0:01:32.8]} 33... dxc5 {[%clk 0:00:06.3]} 34. Rxa3 {[%clk 0:01:32.6]} 34... Rc2
{[%clk 0:00:06.6]} 35. Be3 {[%clk 0:01:30.7]} 35... Kf6 {[%clk 0:00:06]} 36. d6
{[%clk 0:01:27.1]} 36... Ke6 {[%clk 0:00:06.2]} 37. Rd3 {[%clk 0:01:27.3]} 37...
Kd7 {[%clk 0:00:06.3]} 38. Rd5 {[%clk 0:01:26.4]} 38... c4 {[%clk 0:00:06.2]}
39. Kf3 {[%clk 0:01:25.5]} 39... f5 {[%clk 0:00:04.7]} 40. Bf4 {[%clk
0:01:23.9]} 40... Rc3+ {[%clk 0:00:04.6]} 41. Ke2 {[%clk 0:01:23.9]} 41... Rc2+
{[%clk 0:00:04.3]} 42. Ke1 {[%clk 0:01:24.2]} 42... Ra2 {[%clk 0:00:03.2]} 43.
Rc5 {[%clk 0:01:23.5]} 43... Ra4 {[%clk 0:00:02.1]} 44. Rc7+ {[%clk 0:01:23.1]}
44... Ke6 {[%clk 0:00:02.5]} 45. Ke2 {[%clk 0:01:22.4]} 1-0

[Event "Late-Titled-Tuesday-Blitz-October-10-2023"]
[Site "Chess.com"]
[Date "2023.10.10"]
[Round "4"]
[White "Grig1508"]
[Black "Sofiia_Hryzlova"]
[Result "0-1"]
[WhiteElo "1997"]
[BlackElo "2312"]
[TimeControl "180+1"]
[EndTime "14:36:03 PDT"]
[Termination "Sofiia_Hryzlova won on time"]

1. e4 {[%clk 0:03:00.9]} 1... e6 {[%clk 0:02:57.6]} 2. d4 {[%clk 0:03:00.2]}
2... d5 {[%clk 0:02:50.7]} 3. e5 {[%clk 0:03:00]} 3... c5 {[%clk 0:02:50.5]} 4.
c3 {[%clk 0:02:59.8]} 4... Nc6 {[%clk 0:02:50.7]} 5. Nf3 {[%clk 0:03:00]} 5...
Nge7 {[%clk 0:02:50.1]} 6. Bd3 {[%clk 0:02:53.7]} 6... cxd4 {[%clk 0:02:33.9]}
7. cxd4 {[%clk 0:02:52]} 7... Nb4 {[%clk 0:02:30.5]} 8. Bb5+ {[%clk 0:02:49.6]}
8... Nec6 {[%clk 0:02:30.6]} 9. O-O {[%clk 0:02:37.2]} 9... a6 {[%clk
0:02:29.2]} 10. Ba4 {[%clk 0:02:31.2]} 10... b5 {[%clk 0:02:26.9]} 11. Bb3
{[%clk 0:02:06.7]} 11... Na5 {[%clk 0:02:24.1]} 12. a3 {[%clk 0:01:45.4]} 12...
Nxb3 {[%clk 0:02:20.4]} 13. Qxb3 {[%clk 0:01:44.9]} 13... Nc6 {[%clk 0:02:20.2]}
14. Nc3 {[%clk 0:01:43.6]} 14... Be7 {[%clk 0:02:19.1]} 15. Ne2 {[%clk
0:01:38.8]} 15... g5 {[%clk 0:02:09.1]} 16. Ne1 {[%clk 0:01:27.9]} 16... Bd7
{[%clk 0:02:05.3]} 17. f4 {[%clk 0:01:26.1]} 17... g4 {[%clk 0:02:04.9]} 18. Nd3
{[%clk 0:01:20.6]} 18... Na5 {[%clk 0:02:00.8]} 19. Qd1 {[%clk 0:01:15.7]} 19...
h5 {[%clk 0:01:58.3]} 20. f5 {[%clk 0:01:10.7]} 20... exf5 {[%clk 0:01:57.3]}
21. Ng3 {[%clk 0:01:06.5]} 21... Qb6 {[%clk 0:01:49.7]} 22. Be3 {[%clk 0:00:55]}
22... Nc4 {[%clk 0:01:49.5]} 23. Bf2 {[%clk 0:00:49.4]} 23... h4 {[%clk
0:01:47.6]} 24. Ne2 {[%clk 0:00:40.5]} 24... g3 {[%clk 0:01:19.2]} 25. hxg3
{[%clk 0:00:39.8]} 25... hxg3 {[%clk 0:01:19.5]} 26. Nxg3 {[%clk 0:00:39.3]}
26... Qh6 {[%clk 0:01:19.6]} 27. Be1 {[%clk 0:00:20.8]} 27... Ne3 {[%clk
0:01:15.9]} 28. Qf3 {[%clk 0:00:14.9]} 28... Ng4 {[%clk 0:01:11.4]} 29. Rf2
{[%clk 0:00:03.4]} 29... Bg5 {[%clk 0:01:02.3]} 30. Qxd5 {[%clk 0:00:02.3]}
30... Qh2+ {[%clk 0:00:56.5]} 31. Kf1 {[%clk 0:00:02.1]} 31... Ne3+ {[%clk
0:00:56.8]} 0-1

[Event "Late-Titled-Tuesday-Blitz-October-10-2023"]
[Site "Chess.com"]
[Date "2023.10.10"]
[Round "4"]
[White "MaxLeto"]
[Black "AlexandraBotez"]
[Result "1-0"]
[WhiteElo "2502"]
[BlackElo "2282"]
[TimeControl "180+1"]
[EndTime "14:36:19 PDT"]
[Termination "MaxLeto won on time"]

1. g4 {[%clk 0:02:39.8]} 1... d5 {[%clk 0:02:53.7]} 2. Bg2 {[%clk 0:02:35.9]}
2... Bxg4 {[%clk 0:02:50.6]} 3. c4 {[%clk 0:02:35.8]} 3... c6 {[%clk 0:01:59]}
4. Qb3 {[%clk 0:02:35]} 4... Qb6 {[%clk 0:01:55.2]} 5. Qxb6 {[%clk 0:02:29.3]}
5... axb6 {[%clk 0:01:54.8]} 6. cxd5 {[%clk 0:02:30.2]} 6... e5 {[%clk
0:01:44.9]} 7. Nc3 {[%clk 0:02:21.7]} 7... Nf6 {[%clk 0:01:40.3]} 8. Nf3 {[%clk
0:02:11.1]} 8... Bd6 {[%clk 0:01:38.8]} 9. Ng5 {[%clk 0:02:04.8]} 9... O-O
{[%clk 0:01:18.2]} 10. d3 {[%clk 0:01:59.1]} 10... Bb4 {[%clk 0:01:07.3]} 11.
Bd2 {[%clk 0:01:54.5]} 11... h6 {[%clk 0:00:57.3]} 12. Nge4 {[%clk 0:01:46.6]}
12... Nxd5 {[%clk 0:00:55.6]} 13. Nxd5 {[%clk 0:01:40.5]} 13... Bxd2+ {[%clk
0:00:52.7]} 14. Nxd2 {[%clk 0:01:36.2]} 14... cxd5 {[%clk 0:00:53]} 15. Bxd5
{[%clk 0:01:37.1]} 15... Ra7 {[%clk 0:00:51.7]} 16. Rg1 {[%clk 0:01:31.7]} 16...
Bd7 {[%clk 0:00:50.4]} 17. Nc4 {[%clk 0:01:30.6]} 17... Bc6 {[%clk 0:00:38.9]}
18. Nxb6 {[%clk 0:01:23]} 18... Bxd5 {[%clk 0:00:35.4]} 19. Nxd5 {[%clk
0:01:23.2]} 19... Nc6 {[%clk 0:00:36.1]} 20. a3 {[%clk 0:01:19.8]} 20... Rd8
{[%clk 0:00:29.3]} 21. Ne3 {[%clk 0:01:19.6]} 21... b5 {[%clk 0:00:22.7]} 22.
Nf5 {[%clk 0:01:17.9]} 22... g6 {[%clk 0:00:21.3]} 23. Rc1 {[%clk 0:01:13]}
23... Nd4 {[%clk 0:00:17.4]} 24. Nxh6+ {[%clk 0:01:10.3]} 24... Kg7 {[%clk
0:00:17.5]} 25. Ng4 {[%clk 0:01:10.9]} 25... b4 {[%clk 0:00:15]} 26. axb4 {[%clk
0:01:05.4]} 26... Rb8 {[%clk 0:00:12.7]} 27. Nxe5 {[%clk 0:01:01.6]} 27... Rxb4
{[%clk 0:00:12.7]} 28. e3 {[%clk 0:01:01]} 28... Nf5 {[%clk 0:00:06.1]} 29. Nc6
{[%clk 0:00:33.3]} 29... Rc7 {[%clk 0:00:02.1]} 30. Rc2 {[%clk 0:00:33.5]} 30...
Rb6 {[%clk 0:00:01.4]} 31. Nd4 {[%clk 0:00:29.8]} 1-0

[Event "Late-Titled-Tuesday-Blitz-October-10-2023"]
[Site "Chess.com"]
[Date "2023.10.10"]
[Round "4"]
[White "Superfelix"]
[Black "josiwales"]
[Result "0-1"]
[WhiteElo "2488"]
[BlackElo "2744"]
[TimeControl "180+1"]
[EndTime "14:36:20 PDT"]
[Termination "josiwales won by resignation"]

1. e4 {[%clk 0:02:57.7]} 1... c5 {[%clk 0:02:58.3]} 2. Nf3 {[%clk 0:02:57.4]}
2... Nc6 {[%clk 0:02:58]} 3. Bb5 {[%clk 0:02:56.7]} 3... Na5 {[%clk 0:02:56.1]}
4. c3 {[%clk 0:02:55.2]} 4... a6 {[%clk 0:02:57]} 5. Ba4 {[%clk 0:02:55.4]} 5...
e6 {[%clk 0:02:56.1]} 6. Bc2 {[%clk 0:02:55.2]} 6... Nc6 {[%clk 0:02:55.7]} 7.
d4 {[%clk 0:02:53.6]} 7... cxd4 {[%clk 0:02:56.6]} 8. cxd4 {[%clk 0:02:54.2]}
8... d5 {[%clk 0:02:57.5]} 9. exd5 {[%clk 0:02:54]} 9... Qxd5 {[%clk 0:02:53.5]}
10. Nc3 {[%clk 0:02:53.2]} 10... Qd8 {[%clk 0:02:54.1]} 11. d5 {[%clk
0:02:53.3]} 11... exd5 {[%clk 0:02:54]} 12. Qxd5 {[%clk 0:02:53.2]} 12... Be6
{[%clk 0:02:53.3]} 13. Qxd8+ {[%clk 0:02:50.4]} 13... Rxd8 {[%clk 0:02:54.2]}
14. a3 {[%clk 0:02:49.3]} 14... h6 {[%clk 0:02:54.5]} 15. Be3 {[%clk 0:02:48.5]}
15... Nf6 {[%clk 0:02:54.9]} 16. O-O {[%clk 0:02:44.8]} 16... Bd6 {[%clk
0:02:54.6]} 17. Bb6 {[%clk 0:02:43.8]} 17... Rd7 {[%clk 0:02:53.9]} 18. Rad1
{[%clk 0:02:42.7]} 18... O-O {[%clk 0:02:54]} 19. Rd2 {[%clk 0:02:31.8]} 19...
Bg4 {[%clk 0:02:22.3]} 20. Rfd1 {[%clk 0:02:24.6]} 20... Bf4 {[%clk 0:02:11.8]}
21. Rxd7 {[%clk 0:02:21]} 21... Nxd7 {[%clk 0:02:12.7]} 22. Be3 {[%clk
0:02:08.3]} 22... Bxe3 {[%clk 0:01:53.2]} 23. fxe3 {[%clk 0:02:09.2]} 23... Nde5
{[%clk 0:01:51.8]} 24. Kf2 {[%clk 0:02:04.7]} 24... Nc4 {[%clk 0:01:47]} 25. b3
{[%clk 0:01:49.2]} 25... Nxa3 {[%clk 0:01:44.7]} 26. Be4 {[%clk 0:01:48.8]}
26... Rd8 {[%clk 0:01:41.1]} 27. Bxc6 {[%clk 0:01:42]} 27... Rxd1 {[%clk
0:01:40.5]} 28. Nxd1 {[%clk 0:01:42.6]} 28... bxc6 {[%clk 0:01:40.8]} 29. Nb2
{[%clk 0:01:36]} 29... c5 {[%clk 0:01:15.2]} 30. Nd2 {[%clk 0:01:30.5]} 30...
Be6 {[%clk 0:01:13.8]} 31. Kf3 {[%clk 0:01:12.4]} 31... f5 {[%clk 0:01:04.1]}
32. Kf4 {[%clk 0:01:09.1]} 32... Kf7 {[%clk 0:01:02.7]} 33. Ke5 {[%clk 0:01:09]}
33... Ke7 {[%clk 0:01:03.4]} 34. e4 {[%clk 0:00:52.3]} 34... fxe4 {[%clk
0:00:57.2]} 35. Nxe4 {[%clk 0:00:53.2]} 35... c4 {[%clk 0:00:57.3]} 36. bxc4
{[%clk 0:00:49.9]} 36... Nxc4+ {[%clk 0:00:56.2]} 37. Nxc4 {[%clk 0:00:50]}
37... Bxc4 {[%clk 0:00:57.1]} 38. Nc5 {[%clk 0:00:46.5]} 38... a5 {[%clk
0:00:55.5]} 39. g4 {[%clk 0:00:38.5]} 39... Bb5 {[%clk 0:00:50.1]} 40. Ne4
{[%clk 0:00:34.9]} 40... a4 {[%clk 0:00:48.8]} 41. Nc3 {[%clk 0:00:35.6]} 41...
a3 {[%clk 0:00:47]} 42. Kd4 {[%clk 0:00:29.3]} 42... Bd7 {[%clk 0:00:46.8]} 43.
h3 {[%clk 0:00:25.5]} 43... Be6 {[%clk 0:00:44.5]} 0-1

[Event "Late-Titled-Tuesday-Blitz-October-10-2023"]
[Site "Chess.com"]
[Date "2023.10.10"]
[Round "4"]
[White "Zapateado"]
[Black "Artyom_ChessMate"]
[Result "0-1"]
[WhiteElo "2343"]
[BlackElo "2512"]
[TimeControl "180+1"]
[EndTime "14:36:20 PDT"]
[Termination "Artyom_ChessMate won on time"]

1. c4 {[%clk 0:03:00.9]} 1... c5 {[%clk 0:02:58.1]} 2. Nc3 {[%clk 0:03:01.3]}
2... g6 {[%clk 0:02:58]} 3. g3 {[%clk 0:03:01.7]} 3... Bg7 {[%clk 0:02:58.5]} 4.
Bg2 {[%clk 0:03:02.4]} 4... d6 {[%clk 0:02:59.4]} 5. e4 {[%clk 0:03:02.6]} 5...
e5 {[%clk 0:03:00.1]} 6. Nge2 {[%clk 0:03:02.9]} 6... Ne7 {[%clk 0:03:00.8]} 7.
O-O {[%clk 0:03:03.5]} 7... O-O {[%clk 0:03:01.7]} 8. d3 {[%clk 0:03:03.8]} 8...
Nbc6 {[%clk 0:03:02.6]} 9. a3 {[%clk 0:03:02.3]} 9... Rb8 {[%clk 0:03:00.9]} 10.
Rb1 {[%clk 0:03:02.8]} 10... a6 {[%clk 0:03:01.5]} 11. b4 {[%clk 0:03:03.4]}
11... b5 {[%clk 0:03:02]} 12. cxb5 {[%clk 0:03:04.2]} 12... axb5 {[%clk
0:03:02.9]} 13. bxc5 {[%clk 0:03:04]} 13... dxc5 {[%clk 0:03:03.8]} 14. Rxb5
{[%clk 0:03:00.9]} 14... Ba6 {[%clk 0:03:03.8]} 15. Rxb8 {[%clk 0:03:00.4]}
15... Qxb8 {[%clk 0:03:04.4]} 16. Be3 {[%clk 0:02:56.5]} 16... Rd8 {[%clk
0:03:03]} 17. Nd5 {[%clk 0:02:54.1]} 17... Nxd5 {[%clk 0:03:03]} 18. exd5 {[%clk
0:02:55]} 18... Nd4 {[%clk 0:03:03.9]} 19. Nxd4 {[%clk 0:02:52.9]} 19... cxd4
{[%clk 0:03:04.8]} 20. Bg5 {[%clk 0:02:50.9]} 20... f6 {[%clk 0:03:04.2]} 21.
Bc1 {[%clk 0:02:49.1]} 21... Qb5 {[%clk 0:02:58.1]} 22. Re1 {[%clk 0:02:12.4]}
22... Qxd3 {[%clk 0:02:56.2]} 23. Qxd3 {[%clk 0:02:13.3]} 23... Bxd3 {[%clk
0:02:56.5]} 24. f4 {[%clk 0:02:11.4]} 24... Bc4 {[%clk 0:02:51.1]} 25. fxe5
{[%clk 0:02:07.3]} 25... fxe5 {[%clk 0:02:52]} 26. Bg5 {[%clk 0:02:07.1]} 26...
Rd7 {[%clk 0:02:48.2]} 27. Bh3 {[%clk 0:02:05.8]} 27... Ra7 {[%clk 0:02:28]} 28.
d6 {[%clk 0:02:02.1]} 28... h6 {[%clk 0:02:13.6]} 29. d7 {[%clk 0:01:50.9]}
29... Rxd7 {[%clk 0:02:12.1]} 30. Bxd7 {[%clk 0:01:51]} 30... hxg5 {[%clk
0:02:13]} 31. Rc1 {[%clk 0:01:45.5]} 31... Bd5 {[%clk 0:02:10.1]} 32. Rc5 {[%clk
0:01:43.3]} 32... Bf3 {[%clk 0:02:06.9]} 33. Be6+ {[%clk 0:01:39.9]} 33... Kh7
{[%clk 0:02:06.8]} 34. Bd5 {[%clk 0:01:20.8]} 34... e4 {[%clk 0:02:04.1]} 35.
Rc7 {[%clk 0:01:12.6]} 35... d3 {[%clk 0:02:02]} 36. Bb3 {[%clk 0:01:09.3]}
36... e3 {[%clk 0:01:57.7]} 37. Re7 {[%clk 0:01:03.6]} 37... d2 {[%clk
0:01:53.7]} 38. Kf1 {[%clk 0:00:33.7]} 38... Bd5 {[%clk 0:01:44.2]} 39. Bd1
{[%clk 0:00:28.3]} 39... Bc4+ {[%clk 0:01:44]} 40. Kg2 {[%clk 0:00:13.2]} 40...
e2 {[%clk 0:01:33.8]} 41. Rxe2 {[%clk 0:00:12.8]} 41... Bxe2 {[%clk 0:01:33.3]}
42. Bxe2 {[%clk 0:00:13.7]} 42... Bc3 {[%clk 0:01:33.2]} 43. Bd1 {[%clk
0:00:12.8]} 43... Kg7 {[%clk 0:01:33.6]} 44. a4 {[%clk 0:00:13]} 44... Kf6
{[%clk 0:01:34.5]} 45. Kf3 {[%clk 0:00:13.2]} 45... Ke5 {[%clk 0:01:35.4]} 46.
Kg4 {[%clk 0:00:12.8]} 46... Kf6 {[%clk 0:01:34]} 47. h3 {[%clk 0:00:11.4]}
47... Ba5 {[%clk 0:01:32.8]} 48. Kf3 {[%clk 0:00:10.8]} 48... Ke5 {[%clk
0:01:33]} 49. Ke3 {[%clk 0:00:10.3]} 49... Kd5 {[%clk 0:01:30.4]} 50. Ke2 {[%clk
0:00:07.8]} 50... Kd4 {[%clk 0:01:29.7]} 51. Bc2 {[%clk 0:00:07.8]} 51... Kc3
{[%clk 0:01:24.9]} 52. Kd1 {[%clk 0:00:03.6]} 52... Bc7 {[%clk 0:01:22.4]} 53.
g4 {[%clk 0:00:01.8]} 53... Bf4 {[%clk 0:01:22.5]} 0-1